bitfinex/quotes_SOLUSD_20260115
["timestamp","ask_amount","ask_price","bid_price","bid_amount"]
[1768471516296,5.13200642,145.22,145.19,2.54802279]
[1768471516506,5.13200642,145.21,145.19,2.54802279]
[1768471516707,6.88602754,145.23,145.19,2.54802279]
[1768471516900,5.13248223,145.22,145.19,2.54802279]
[1768471517207,6.88602754,145.23,145.19,2.54802279]
[1768471517406,5.13249213,145.22,145.19,2.54802279]
[1768471517619,24.10010176,145.23,145.18,3.71652242]
[1768471517791,7.68062251,145.22,145.16,3.71652242]
[1768471517998,5.13259972,145.21,145.16,1.16849963]
[1768471518311,5.13259972,145.21,145.16,3.71652242]
[1768471518616,5.13259972,145.21,145.16,1.16849963]
[1768471518822,5.13259972,145.21,145.16,3.71652242]
[1768471518998,6.88705234,145.2,145.16,1.16849963]
[1768471519407,24.10468319,145.2,145.16,1.16849963]
[1768471520417,24.10468319,145.2,145.15,16.27652242]
[1768471521423,24.10468319,145.2,145.16,2.54802279]
[1768471521619,6.88705234,145.2,145.15,0.98161402]
[1768471521810,6.88705234,145.2,145.17,3.52963681]
[1768471522404,24.10468319,145.2,145.15,3.52963681]
[1768471522607,5.13446764,145.19,145.15,3.52963681]
[1768471522804,26.65270598,145.2,145.15,3.52963681]
[1768471523007,5.13436994,145.19,145.15,3.52963681]
[1768471523229,26.65270598,145.2,145.15,3.52963681]
[1768471523399,5.13497971,145.19,145.15,3.52963681]
[1768471523603,26.65270598,145.2,145.15,0.98161402]
[1768471523817,5.13497716,145.19,145.15,0.98161402]
[1768471524010,24.10468319,145.2,145.15,3.52963681]
[1768471524209,5.13497716,145.19,145.15,3.52963681]
[1768471524410,24.10468319,145.2,145.16,0.97910534]
[1768471524607,5.13588619,145.19,145.16,0.97910534]
[1768471524805,24.10468319,145.2,145.16,0.97910534]
[1768471525098,5.13588734,145.19,145.16,0.97910534]
[1768471525304,24.10468319,145.2,145.16,0.97910534]
[1768471525624,5.13684375,145.19,145.16,0.97910534]
[1768471525936,17.21763085,145.2,145.16,0.97910534]
[1768471526229,5.13684491,145.19,145.15,0.97910534]
[1768471526431,17.21763085,145.2,145.15,3.52712813]
[1768471526617,5.13809102,145.19,145.15,3.52712813]
[1768471526910,5.13809102,145.18,145.15,3.52712813]
[1768471527112,17.21763085,145.2,145.15,3.52712813]
[1768471527325,6.8880011,145.18,145.15,3.52712813]
[1768471527635,6.8880011,145.18,145.15,0.97910534]
[1768471529317,6.88752668,145.19,145.16,0.97910534]
[1768471529515,6.88752668,145.19,145.16,3.52712813]
[1768471530030,5.14139874,145.18,145.16,3.52712813]
[1768471530229,6.88752668,145.19,145.16,3.52712813]
[1768471530432,12.03069731,145.18,145.16,3.52712813]
[1768471530637,6.88814065,145.18,145.16,0.97910534]
[1768471532425,24.10468319,145.2,145.16,0.97910534]
[1768471532729,5.14301373,145.19,145.16,0.97910534]
[1768471532926,24.10468319,145.2,145.16,0.97910534]
[1768471533107,5.14312041,145.19,145.16,0.97910534]
[1768471533308,5.14312041,145.18,145.16,0.97910534]
[1768471533626,5.14315199,145.17,145.15,0.97910534]
[1768471533811,26.65270598,145.2,145.15,0.97910534]
[1768471534012,5.14323969,145.19,145.15,0.97910534]
[1768471534224,5.14323969,145.18,145.15,0.97910534]
[1768471534434,5.14323969,145.17,145.15,0.97910534]
[1768471534731,6.88867704,145.17,145.15,0.97910534]
[1768471536229,6.88752668,145.19,145.15,0.97910534]
[1768471536419,5.14298271,145.18,145.13,0.97910534]
[1768471536735,5.14298271,145.17,145.14,3.52712813]
[1768471537030,26.65436619,145.19,145.14,3.52712813]
[1768471537332,5.14318753,145.18,145.14,3.52712813]
[1768471537534,6.88895012,145.16,145.14,3.52712813]
[1768471537917,6.88895012,145.16,145.14,0.97910534]
[1768471538220,6.88895012,145.16,145.14,3.52712813]
[1768471538431,6.8880011,145.18,145.14,3.52712813]
[1768471538631,5.1428357,145.17,145.14,3.52712813]
[1768471538826,6.8880011,145.18,145.14,3.52712813]
[1768471539137,5.1428334,145.17,145.14,3.52712813]
[1768471539345,24.10800385,145.18,145.14,0.97910534]
[1768471539512,5.14269603,145.17,145.14,0.97910534]
[1768471539842,24.10800385,145.18,145.14,0.97910534]
[1768471540037,6.88895012,145.16,145.14,0.97910534]
[1768471541336,24.10800385,145.18,145.14,3.52712813]
[1768471541515,5.14234392,145.17,145.14,3.52712813]
[1768471541718,24.10800385,145.18,145.14,3.52712813]
[1768471541943,5.14234392,145.17,145.14,3.52712813]
[1768471542119,24.10800385,145.18,145.14,3.52712813]
[1768471542311,12.031093,145.17,145.14,0.97910534]
[1768471542516,6.88889111,145.17,145.14,0.97910534]
[1768471544530,2.54802279,145.19,145.14,0.97910534]
[1768471544718,5.1413914,145.18,145.14,0.97910534]
[1768471544919,5.1413914,145.17,145.14,0.97910534]
[1768471545119,2.54802279,145.19,145.14,0.97910534]
[1768471545316,5.1412777,145.18,145.14,0.97910534]
[1768471545534,5.1412777,145.17,145.14,0.97910534]
[1768471545737,2.54802279,145.19,145.14,0.97910534]
[1768471545936,5.14117377,145.18,145.14,0.97910534]
[1768471546120,5.14117377,145.17,145.14,0.97910534]
[1768471546322,2.54802279,145.19,145.14,0.97910534]
[1768471546532,6.88847558,145.17,145.14,0.97910534]
[1768471548724,6.8880011,145.18,145.14,0.97910534]
[1768471548926,5.14138061,145.17,145.14,0.97910534]
[1768471549156,6.8880011,145.18,145.14,0.97910534]
[1768471549325,5.14170941,145.17,145.14,0.97910534]
[1768471549527,6.8880011,145.18,145.14,0.97910534]
[1768471549735,12.0304972,145.17,145.14,0.97910534]
[1768471550059,6.88878779,145.17,145.14,0.97910534]
[1768471551650,6.8880011,145.18,145.14,3.52712813]
[1768471551960,5.14283263,145.17,145.14,3.52712813]
[1768471552247,6.8880011,145.18,145.14,3.52712813]
[1768471552439,5.14356394,145.17,145.14,3.52712813]
[1768471552641,6.8880011,145.18,145.14,3.52712813]
[1768471552852,5.14356394,145.17,145.14,3.52712813]
[1768471553053,6.8880011,145.18,145.14,0.97910534]
[1768471553354,5.14356394,145.17,145.14,3.52712813]
[1768471553527,6.8880011,145.18,145.14,3.52712813]
[1768471553730,12.03326655,145.17,145.14,3.52712813]
[1768471554054,6.8888681,145.17,145.14,3.52712813]
[1768471554741,6.8888681,145.17,145.14,3.49712814]
[1768471555133,6.8888681,145.17,145.14,0.94910535]
[1768471555333,6.8888681,145.17,145.14,3.49712814]
[1768471555726,6.8880011,145.18,145.14,3.49712814]
[1768471555930,5.14614535,145.17,145.14,3.49712814]
[1768471556149,6.8880011,145.18,145.14,3.49712814]
[1768471556355,5.14703722,145.17,145.14,3.49712814]
[1768471556545,6.8880011,145.18,145.14,3.49712814]
[1768471556747,5.14703607,145.17,145.14,0.94910535]
[1768471557050,6.8880011,145.18,145.14,3.49712814]
[1768471557251,5.14703607,145.17,145.14,3.49712814]
[1768471557463,5.14703607,145.16,145.14,3.49712814]
[1768471557749,6.8880011,145.18,145.14,3.49712814]
[1768471557938,12.03689872,145.17,145.14,3.49712814]
[1768471558136,5.148071,145.16,145.14,3.49712814]
[1768471558353,6.88882772,145.17,145.14,0.94910535]
[1768471558554,5.14927893,145.16,145.14,3.49712814]
[1768471558750,6.88882772,145.17,145.14,0.94910535]
[1768471558954,5.14928008,145.16,145.14,3.49712814]
[1768471559157,6.88882772,145.17,145.14,3.49712814]
[1768471559466,12.03966788,145.16,145.14,3.49712814]
[1768471559768,6.88895769,145.16,145.14,3.49712814]
[1768471562463,6.8880011,145.18,145.14,0.94910535]
[1768471562658,5.15491656,145.17,145.14,0.94910535]
[1768471562860,5.15491656,145.16,145.14,0.94910535]
[1768471563037,6.8880011,145.18,145.14,0.94910535]
[1768471563237,5.15486853,145.17,145.14,3.49712814]
[1768471563441,5.15486853,145.16,145.14,3.49712814]
[1768471563638,6.8880011,145.18,145.14,3.49712814]
[1768471563942,5.15553115,145.17,145.14,3.49712814]
[1768471564149,5.15553115,145.16,145.14,3.49712814]
[1768471564452,5.15553115,145.15,145.14,3.49712814]
[1768471566852,5.15553115,145.15,145.14,0.94910535]
[1768471567250,5.15553115,145.15,145.06,39.8109846]
[1768471567251,6.8898994,145.14,145.1,0.90810723]
[1768471567563,5.15553115,145.13,145.11,0.90810723]
[1768471567863,6.64736759,145.14,145.11,0.90810723]
[1768471568051,5.15816961,145.13,145.11,0.90810723]
[1768471568244,6.64736759,145.14,145.11,0.90810723]
[1768471568444,5.15729088,145.13,145.11,0.90810723]
[1768471568640,6.64736759,145.14,145.11,0.90810723]
[1768471568859,5.15728972,145.13,145.11,0.90810723]
[1768471569160,6.88942473,145.15,145.11,0.90810723]
[1768471569364,5.15736326,145.14,145.11,0.90810723]
[1768471569566,5.15736326,145.13,145.11,0.90810723]
[1768471569752,9.43744752,145.15,145.11,0.90810723]
[1768471570061,2.54802279,145.14,145.11,0.90810723]
[1768471570262,9.43805096,145.14,145.11,0.90810723]
[1768471570465,5.1566508,145.13,145.11,0.90810723]
[1768471570763,9.43805096,145.14,145.11,0.90810723]
[1768471571068,5.15585734,145.13,145.11,0.90810723]
[1768471571252,9.43805096,145.14,145.11,0.90810723]
[1768471571452,5.15547255,145.13,145.11,0.90810723]
[1768471571658,9.43805096,145.14,145.11,0.90810723]
[1768471571843,5.15547139,145.13,145.11,0.90810723]
[1768471572046,9.43805096,145.14,145.11,0.90810723]
[1768471572353,5.15547255,145.13,145.11,0.90810723]
[1768471572553,9.43805096,145.14,145.11,0.90810723]
[1768471572760,5.1548796,145.13,145.11,0.90810723]
[1768471572950,9.43805096,145.14,145.11,0.90810723]
[1768471573271,5.15509698,145.13,145.11,0.90810723]
[1768471573465,10.87659207,145.14,145.11,0.90810723]
[1768471573639,5.15453308,145.13,145.11,0.90810723]
[1768471573844,10.87659207,145.14,145.11,0.90810723]
[1768471574155,5.15453193,145.13,145.11,0.90810723]
[1768471574352,10.87659207,145.14,145.11,0.90810723]
[1768471574565,5.15417233,145.13,145.11,0.90810723]
[1768471574769,10.87659207,145.14,145.11,0.90810723]
[1768471574962,5.15417233,145.13,145.11,0.90810723]
[1768471575162,10.87659207,145.14,145.11,0.90810723]
[1768471575366,5.1543374,145.13,145.11,0.90810723]
[1768471575564,10.87659207,145.14,145.11,0.90810723]
[1768471575867,5.15396112,145.13,145.11,0.90810723]
[1768471576077,3.9865639,145.13,145.11,0.90810723]
[1768471577542,6.89002817,145.14,145.11,0.90810723]
[1768471577744,9.13986024,145.13,145.11,0.90810723]
[1768471577953,3.9865639,145.13,145.11,0.90810723]
[1768471580649,6.88911313,145.16,145.11,0.90810723]
[1768471580955,12.56,145.16,145.11,28.10611486]
[1768471581383,3.9865639,145.17,145.11,28.10611486]
[1768471581750,11.70678655,145.18,145.12,3.9865639]
[1768471583464,17.39576665,145.19,145.13,10.87693804]
[1768471583671,0.84920275,145.22,145.15,3.9865639]
[1768471583874,4.83576665,145.22,145.16,3.9865639]
[1768471584266,0.84920275,145.22,145.16,3.9865639]
[1768471584466,4.83576665,145.22,145.16,3.9865639]
[1768471584859,11.72188821,145.22,145.16,10.87511218]
[1768471585059,11.72188821,145.22,145.16,6.88854828]
[1768471585287,11.72188821,145.22,145.16,10.87511218]
[1768471586663,7.73532431,145.22,145.16,10.87511218]
[1768471586979,7.73532431,145.22,145.17,3.9865639]
[1768471587187,11.72145133,145.23,145.17,3.9865639]
[1768471588384,11.72145133,145.23,145.17,10.87465566]
[1768471588581,17.2110301,145.26,145.2,3.9865639]
[1768471588582,0.84920275,145.26,145.2,3.9865639]
[1768471588791,0.84920275,145.25,145.2,3.9865639]
[1768471589085,4.83576665,145.25,145.19,3.9865639]
[1768471589281,0.84920275,145.24,145.19,3.9865639]
[1768471589791,0.84920275,145.24,145.19,10.87371074]
[1768471590080,7.73404044,145.25,145.2,3.9865639]
[1768471590873,7.73404044,145.25,145.2,10.87346024]
[1768471591664,0.84920275,145.24,145.2,10.87346024]
[1768471592879,0.84920275,145.25,145.2,10.87346024]
[1768471593387,0.84920275,145.25,145.21,0.02484163]
[1768471594982,7.73395379,145.25,145.21,0.02484163]
[1768471595680,0.84920275,145.24,145.21,0.02484163]
[1768471595883,0.84920275,145.24,145.2,10.91022889]
[1768471596189,0.84920275,145.24,145.2,6.92366499]
[1768471597183,0.1,145.31,145.24,0.04262961]
[1768471597388,0.05157675,145.3,145.27,3.9865639]
[1768471597606,0.05157675,145.3,145.24,12.56]
[1768471597776,0.05157675,145.3,145.27,3.9865639]
[1768471597977,0.05157675,145.3,145.26,3.9865639]
[1768471598164,0.05157675,145.3,145.27,3.9865639]
[1768471598364,0.05157675,145.3,145.25,3.9865639]
[1768471598566,0.05157675,145.3,145.28,3.9865639]
[1768471599178,0.05157675,145.3,145.25,28.08294943]
[1768471599374,0.94920275,145.33,145.29,3.9865639]
[1768471599573,0.94920275,145.33,145.3,3.9865639]
[1768471599574,0.1,145.33,145.3,3.9865639]
[1768471600187,0.84920275,145.34,145.32,3.9865639]
[1768471600378,0.84920275,145.34,145.28,12.56]
[1768471600379,0.84920275,145.34,145.33,3.9865639]
[1768471600686,0.94920275,145.35,145.33,3.9865639]
[1768471602293,0.94920275,145.35,145.31,0.02251672]
[1768471602585,0.94920275,145.35,145.33,3.9865639]
[1768471602785,0.1,145.35,145.34,3.9865639]
[1768471603975,0.1,145.35,145.33,3.9865639]
[1768471604174,0.94920275,145.35,145.31,6.91519549]
[1768471604386,0.94920275,145.35,145.32,3.9865639]
[1768471604580,0.94920275,145.35,145.31,6.91519549]
[1768471604972,0.94920275,145.35,145.32,3.9865639]
[1768471605791,0.1,145.35,145.32,0.04429421]
[1768471605988,0.1,145.35,145.33,3.9865639]
[1768471608393,0.1,145.35,145.32,0.04429421]
[1768471608588,0.1,145.35,145.33,3.9865639]
[1768471608893,0.1,145.35,145.34,3.9865639]
[1768471611577,0.1,145.35,145.32,0.07526455]
[1768471611781,1.00122131,145.35,145.33,3.9865639]
[1768471612698,0.1,145.35,145.33,3.9865639]
[1768471612882,0.1,145.35,145.33,4.07168395]
[1768471613077,0.1,145.35,145.34,3.9865639]
[1768471613697,0.1,145.35,145.33,0.08512005]
[1768471613903,0.1,145.35,145.34,3.9865639]
[1768471616689,1.00122131,145.36,145.34,3.9865639]
[1768471618002,1.00122131,145.36,145.33,0.10416089]
[1768471618203,1.00122131,145.36,145.34,3.9865639]
[1768471618997,1.00122131,145.36,145.33,0.10416089]
[1768471619291,1.00122131,145.36,145.33,4.09072479]
[1768471620702,1.00122131,145.36,145.33,0.10416089]
[1768471621009,1.00122131,145.36,145.33,4.09072479]
[1768471624301,1.00122131,145.36,145.33,3.9865639]
[1768471625100,0.90122131,145.35,145.32,3.9865639]
[1768471627302,0.90122131,145.35,145.32,4.1346495]
[1768471627508,0.90122131,145.35,145.32,0.1480856]
[1768471627706,0.90122131,145.35,145.32,3.9865639]
[1768471631216,0.90122131,145.34,145.29,0.9150844]
[1768471631397,0.90122131,145.34,145.29,4.9016483]
[1768471632207,0.90122131,145.33,145.28,0.9150844]
[1768471632493,0.90122131,145.33,145.28,7.79819198]
[1768471632494,0.90122131,145.32,145.28,7.79819198]
[1768471632905,0.90122131,145.32,145.28,11.78475588]
[1768471633114,0.90122131,145.32,145.28,7.79819198]
[1768471633307,0.90122131,145.32,145.28,0.9150844]
[1768471633504,0.90122131,145.31,145.28,0.9150844]
[1768471633710,0.90122131,145.31,145.28,10.34309318]
[1768471634027,0.90122131,145.33,145.29,0.9150844]
[1768471634534,0.90122131,145.32,145.29,0.9150844]
[1768471634814,0.90122131,145.32,145.29,3.45989387]
[1768471635395,1.00122131,145.36,145.32,0.9150844]
[1768471636006,1.00122131,145.36,145.31,3.45989387]
[1768471636621,0.90122131,145.35,145.31,3.45989387]
[1768471637321,0.90122131,145.35,145.32,2.54480947]
[1768471639723,1.00122131,145.36,145.32,3.45989387]
[1768471639910,1.00122131,145.36,145.32,10.34103477]
[1768471640309,0.1,145.36,145.34,0.9150844]
[1768471641002,0.99571326,145.36,145.33,3.48076213]
[1768471642224,0.99571326,145.36,145.33,0.93595266]
[1768471642525,0.99571326,145.36,145.33,3.48076213]
[1768471644326,0.99571326,145.36,145.33,0.93595266]
[1768471644525,0.99571326,145.36,145.33,3.48076213]
[1768471645525,0.99571326,145.36,145.33,0.93595266]
[1768471645713,0.99571326,145.36,145.33,3.48076213]
[1768471646424,0.94029011,145.35,145.31,9.42661749]
[1768471646622,0.94029011,145.35,145.31,10.33351541]
[1768471647118,0.94029011,145.35,145.31,7.78870594]
[1768471647313,0.94029011,145.35,145.31,10.33351541]
[1768471647519,0.94029011,145.35,145.32,2.54480947]
[1768471649028,0.94029011,145.35,145.31,7.78870594]
[1768471649206,0.94029011,145.35,145.32,2.54480947]
[1768471649402,0.94029011,145.35,145.31,10.33351541]
[1768471649625,0.94029011,145.33,145.29,61.5]
[1768471649830,0.06905909,145.33,145.29,0.90689792]
[1768471650326,0.06905909,145.33,145.29,10.33419329]
[1768471650625,0.06905909,145.33,145.3,0.90689792]
[1768471650832,0.06905909,145.33,145.3,10.33398238]
[1768471652528,7.82023898,145.35,145.31,0.90689792]
[1768471653929,0.94029011,145.34,145.31,0.90689792]
[1768471654334,7.82074116,145.34,145.31,0.90689792]
[1768471654736,7.82074116,145.34,145.3,3.45170739]
[1768471655036,7.82074116,145.34,145.3,0.90689792]
[1768471655220,7.82074116,145.34,145.3,3.45170739]
[1768471656431,0.94029011,145.34,145.31,3.45170739]
[1768471656632,7.82037558,145.35,145.32,0.90689792]
[1768471656830,0.94029011,145.34,145.3,10.33396772]
[1768471657134,0.94029011,145.34,145.3,0.90689792]
[1768471657438,0.94029011,145.34,145.3,3.45170739]
[1768471658341,0.94029011,145.34,145.3,0.90689792]
[1768471658634,0.94029011,145.33,145.29,0.90689792]
[1768471658835,0.94029011,145.33,145.28,0.90689792]
[1768471658836,0.94029011,145.32,145.28,0.90689792]
[1768471659210,0.94029011,145.32,145.28,3.45170739]
[1768471660233,0.94029011,145.32,145.28,0.90689792]
[1768471661339,0.94029011,145.34,145.3,3.45170739]
[1768471661640,0.94029011,145.32,145.29,0.90689792]
[1768471661933,0.94029011,145.32,145.28,7.79014324]
[1768471662229,0.94029011,145.31,145.28,0.90689792]
[1768471662427,0.94029011,145.31,145.27,10.33536636]
[1768471663235,0.94029011,145.31,145.27,7.79055689]
[1768471663436,0.94029011,145.31,145.27,10.33536636]
[1768471665639,0.94029011,145.31,145.27,7.79055689]
[1768471665833,0.94029011,145.31,145.27,10.33536636]
[1768471666051,0.94029011,145.31,145.28,0.90689792]
[1768471670919,0.94029011,145.31,145.27,1.02382026]
[1768471671149,0.97476224,145.3,145.27,1.02382026]
[1768471672137,0.97476224,145.3,145.27,3.56862973]
[1768471673836,0.97476224,145.3,145.27,1.02382026]
[1768471674229,7.85713214,145.3,145.26,1.02382026]
[1768471674439,0.97476224,145.28,145.25,62.52382026]
[1768471674639,0.97476224,145.28,145.25,7.90843859]
[1768471675936,0.97476224,145.28,145.26,6.88420286]
[1768471676654,0.97476224,145.32,145.28,1.02382026]
[1768471676843,0.97476224,145.34,145.31,2.54480947]
[1768471677031,0.97476224,145.34,145.3,1.02382026]
[1768471677349,0.97476224,145.34,145.31,2.54480947]
[1768471678534,0.97476224,145.32,145.28,8.96387524]
[1768471678738,0.97476224,145.31,145.27,1.02382026]
[1768471680734,0.97476224,145.29,145.25,1.02382026]
[1768471680929,0.97476224,145.29,145.25,3.56862973]
[1768471682354,0.97476224,145.29,145.26,6.88410616]
[1768471683450,0.97476224,145.29,145.26,7.90792642]
[1768471686554,0.97476224,145.29,145.26,10.45273589]
[1768471686733,0.97476224,145.29,145.26,7.90792642]
[1768471686936,0.97476224,145.29,145.26,10.45273589]
[1768471689565,0.97476224,145.27,145.24,6.88511106]
[1768471690990,0.97476224,145.27,145.24,10.45374079]
[1768471691279,0.97476224,145.27,145.24,7.90893132]
[1768471691485,0.97476224,145.27,145.24,10.45374079]
[1768471692960,0.97476224,145.27,145.24,6.88511106]
[1768471694291,0.97476224,145.27,145.24,10.86386811]
[1768471696883,0.97476224,145.27,145.24,6.88511106]
[1768471697177,0.97476224,145.27,145.24,10.86386811]
[1768471698893,0.97476224,145.27,145.24,6.88511106]
[1768471699271,0.97476224,145.27,145.24,10.86386811]
[1768471701073,0.97476224,145.27,145.24,7.89418062]
[1768471701373,0.97476224,145.27,145.24,11.87293767]
[1768471703091,0.97476224,145.27,145.24,7.89418062]
[1768471703486,0.97476224,145.27,145.24,11.87293767]
[1768471705203,0.96352004,145.29,145.26,4.92635836]
[1768471706070,0.96352004,145.29,145.26,0.94760131]
[1768471706295,0.96352004,145.31,145.28,4.92635836]
[1768471706493,0.96352004,145.31,145.28,0.94760131]
[1768471708180,0.96352004,145.31,145.28,11.80955554]
[1768471708582,0.96352004,145.32,145.29,4.92635836]
[1768471708790,13.50352004,145.33,145.3,0.94760131]
[1768471709013,0.96352004,145.32,145.29,4.92635836]
[1768471709580,0.96352004,145.32,145.29,11.80901412]
[1768471710289,0.96352004,145.32,145.29,7.83025707]
[1768471710490,0.96352004,145.32,145.29,11.80901412]
[1768471711705,0.96352004,145.32,145.29,6.88265576]
[1768471712584,0.96352004,145.32,145.29,7.83025707]
[1768471712791,0.96352004,145.32,145.29,11.80901412]
[1768471713705,0.96352004,145.32,145.29,7.83025707]
[1768471714005,0.96352004,145.33,145.3,6.88225257]
[1768471714304,3.97875705,145.33,145.28,18.15575108]
[1768471715295,3.97875705,145.33,145.29,6.88248318]
[1768471715497,16.51875705,145.34,145.29,0.94760131]
[1768471716302,16.51875705,145.34,145.3,6.88227369]
[1768471716712,12.54,145.34,145.3,6.88227369]
[1768471717008,16.51875705,145.34,145.3,6.88227369]
[1768471718410,12.54,145.34,145.3,6.88227369]
[1768471718592,16.51875705,145.34,145.3,6.88227369]
[1768471719114,12.54,145.34,145.31,0.94760131]
[1768471719300,16.51875705,145.34,145.31,0.94760131]
[1768471719501,16.51875705,145.34,145.3,0.94760131]
[1768471720303,12.54,145.34,145.31,0.94760131]
[1768471721003,6.97964859,145.36,145.31,0.94760131]
[1768471721313,10.95840564,145.36,145.31,7.8294319]
[1768471721692,0.1,145.36,145.32,0.94760131]
[1768471721896,0.1,145.36,145.33,0.94760131]
[1768471724216,0.1,145.36,145.33,0.91760134]
[1768471725213,4.07875705,145.36,145.32,6.88109183]
[1768471725520,4.07875705,145.36,145.29,17.20646091]
[1768471725521,3.97875705,145.35,145.31,6.88172189]
[1768471725714,10.958293,145.36,145.31,6.88172189]
[1768471725897,6.97953595,145.36,145.31,6.88172189]
[1768471726098,3.97875705,145.35,145.31,6.88172189]
[1768471726294,3.97875705,145.35,145.31,7.8293232]
[1768471726717,10.958293,145.36,145.31,7.8293232]
[1768471726915,10.958293,145.36,145.31,0.94760131]
[1768471727222,3.97875705,145.35,145.31,0.94760131]
[1768471728828,3.97875705,145.35,145.31,7.82939499]
[1768471729324,10.958293,145.36,145.31,7.82939499]
[1768471733129,6.97953595,145.36,145.31,7.82939499]
[1768471733329,10.958293,145.36,145.31,7.82939499]
[1768471736036,6.97953595,145.36,145.32,0.99184697]
[1768471736338,0.1,145.36,145.33,0.99184697]
[1768471737232,0.1,145.36,145.34,0.99184697]
[1768471737937,0.1,145.36,145.35,0.96184698]
[1768471738128,6.8781503,145.39,145.35,0.93184699]
[1768471738429,6.9088729,145.39,145.35,0.93184699]
[1768471738621,10.88762995,145.39,145.35,0.93184699]
[1768471738932,0.02788772,145.38,145.35,0.93184699]
[1768471741032,0.02788772,145.38,145.32,17.20341315]
[1768471741033,0.02231526,145.35,145.32,0.99184697]
[1768471741233,4.00107231,145.35,145.32,0.99184697]
[1768471741623,0.02231526,145.35,145.32,0.99184697]
[1768471741822,4.00107231,145.35,145.32,0.99184697]
[1768471742023,3.97875705,145.35,145.32,0.99184697]
[1768471742631,19.41939705,145.37,145.33,0.99184697]
[1768471742833,3.97875705,145.36,145.33,0.99184697]
[1768471743138,3.97875705,145.35,145.32,0.99184697]
[1768471744326,3.97875705,145.34,145.32,0.99184697]
[1768471746632,3.97875705,145.35,145.32,0.99184697]
[1768471746844,23.39847087,145.36,145.32,0.99184697]
[1768471747625,16.51875705,145.36,145.33,0.99184697]
[1768471747815,16.51875705,145.36,145.33,0.96184698]
[1768471749333,12.54,145.36,145.33,0.96184698]
[1768471749544,16.51875705,145.36,145.33,0.96184698]
[1768471752253,23.42171839,145.36,145.32,0.99184697]
[1768471752429,3.97875705,145.35,145.32,0.99184697]
[1768471752635,3.97875705,145.34,145.32,0.99184697]
[1768471753030,3.97875705,145.34,145.3,6.88212916]
[1768471753241,3.97875705,145.34,145.31,0.99184697]
[1768471753650,0.02102094,145.35,145.31,0.99184697]
[1768471753826,3.97875705,145.34,145.31,0.99184697]
[1768471755452,2.54433401,145.34,145.31,0.99184697]
[1768471757929,0.02102094,145.35,145.31,0.99184697]
[1768471757930,2.56535495,145.35,145.31,0.99184697]
[1768471758148,0.02102094,145.35,145.31,0.99184697]
[1768471758456,2.56535495,145.35,145.31,0.99184697]
[1768471758651,2.54433401,145.34,145.3,0.99184697]
[1768471759540,2.54433401,145.34,145.31,0.99184697]
[1768471761230,2.54433401,145.33,145.3,0.90559105]
[1768471761436,2.54433401,145.32,145.29,0.90559105]
[1768471763460,12.54,145.33,145.3,0.90061784]
[1768471763655,6.88009814,145.35,145.31,0.90061784]
[1768471763851,12.54,145.35,145.3,2.54433401]
[1768471765756,15.08433401,145.35,145.3,6.88189865]
[1768471765937,15.08433401,145.35,145.31,0.90061784]
[1768471766338,2.54433401,145.35,145.31,0.90061784]
[1768471766561,22.85607554,145.36,145.31,0.90061784]
[1768471768664,20.31174153,145.36,145.31,0.90061784]
[1768471768866,22.85607554,145.36,145.31,0.90061784]
[1768471770243,2.54433401,145.35,145.31,0.90061784]
[1768471771163,22.85607554,145.36,145.32,0.90061784]
[1768471771462,2.54433401,145.35,145.32,0.90061784]
[1768471772964,22.85607554,145.36,145.32,0.90061784]
[1768471773165,2.54433401,145.35,145.32,0.90061784]
[1768471773755,3.42430512,145.35,145.32,0.90061784]
[1768471775060,0.87997111,145.35,145.32,0.90061784]
[1768471775263,3.42430512,145.35,145.32,0.90061784]
[1768471777572,2.54433401,145.34,145.32,0.90061784]
[1768471777748,2.54433401,145.34,145.31,0.90061784]
[1768471777749,3.42282283,145.34,145.31,0.90061784]
[1768471778367,2.54433401,145.33,145.31,0.90061784]
[1768471778771,2.54433401,145.33,145.31,0.87061785]
[1768471778974,2.54433401,145.32,145.29,61.5]
[1768471779169,3.44025177,145.32,145.28,6.88292878]
[1768471779467,0.89591776,145.32,145.28,6.88292878]
[1768471779770,3.44025177,145.32,145.28,6.88292878]
[1768471780171,2.54433401,145.31,145.28,6.88292878]
[1768471780871,0.89591776,145.35,145.3,0.90061784]
[1768471781165,2.54433401,145.34,145.3,0.90061784]
[1768471781955,2.54433401,145.34,145.31,0.90061784]
[1768471782963,20.31588741,145.35,145.31,0.90061784]
[1768471783154,2.54433401,145.34,145.31,0.90061784]
[1768471784776,2.54433401,145.33,145.31,0.90061784]
[1768471785668,2.54433401,145.34,145.31,0.90061784]
[1768471787574,2.54433401,145.39,145.32,0.90061784]
[1768471787575,7.774443,145.38,145.32,0.90061784]
[1768471787880,5.14834925,145.37,145.33,0.90061784]
[1768471788071,10.31877701,145.38,145.33,0.90061784]
[1768471788374,6.04421995,145.37,145.33,0.90061784]
[1768471788577,3.44025177,145.37,145.33,0.90061784]
[1768471789971,0.89591776,145.37,145.34,0.90061784]
[1768471790877,0.89591776,145.37,145.27,5.34408856]
[1768471791066,12.54,145.39,145.27,5.34408856]
[1768471791067,0.8877416,145.34,145.28,0.88883612]